Cogmind - Beta 9.6 @@@ ROGUE MODE // 2020.08.06 @ 16:34:24 Player: Orfs Result: Destroyed by H-66 Slayer with Gauss Rifle Performance ------------- Evolutions (4) 2000 Regions Visited (13) 2600 Robots Destroyed (39) 195 Value Destroyed (715) 715 Prototype IDs (2) 40 Alien Tech Used (0) 0 Bonus (350) 350 TOTAL SCORE: 5900 Bonus ------- Follower Combat Kills 50 Aligned with FarCom 300 Cogmind --------- Core Integrity 0/850 Matter 290/300 Energy 258/290 System Corruption 7% Temperature Cool (0) Movement Walking (120) Location -6/Lower Caves Parts ------- > --- POWER (2) -------- Improved Deuterium Engine > --- PROPULSION (4) --- Carbon-fiber Leg > --- UTILITY (7) ------ Coolant Injector Improved Signal Interpreter Melee Analysis Suite Hacking Suite System Shield > --- WEAPON (2) ------- Ripper > --- INVENTORY (4) ---- Micro Nuclear Core Heavy Machine Gun Remote Datajack Remote Datajack Peak State ------------ > --- POWER ------------ Micro Nuclear Core Light Angular Momentum Engine > --- PROPULSION ------- Improved Medium Treads Armored Huge Wheel > --- UTILITY ---------- Fusion Compressor Compact Matter Pod Improved Signal Interpreter Hardened Medium Armor Plating Focal Shield Improved Integration Mediator > --- WEAPON ----------- Force Rifle Remote Datajack > --- INVENTORY -------- Heavy Machine Gun Heavy Machine Gun [Rating: 55] Favorites ----------- Power Micro Nuclear Core Engine Light Ion Engine Power Core Micro Nuclear Core Propulsion Flight Unit Treads Improved Medium Treads Leg Aluminum Leg Wheel Armored Huge Wheel Hover Unit Airjet Flight Unit Flight Unit Utility Improved Signal Interpreter Device Weight Redist. System Storage Medium Storage Unit Processor Improved Signal Interpreter Hackware System Shield Protection Medium Armor Plating Weapon Longsword +1 Energy Gun Medium Laser Ballistic Gun Heavy Machine Gun Launcher Rocket Launcher Special Weapon Remote Datajack Slashing Weapon Longsword +1 Build | -11 -10 -10 -9 -9 -9 -8 -8 -8 -7 -7 -7 -6 -6 ------- Run | Scr Mat Min Mat Min Exi Min Mat Sto Fac Low Low Fac Low Slots Evolved 8 | . . . 2 . . . 2 . 2 . . 2 . Power 1 | . . . . . . . . . 1 . . . . Propulsion 2 | . . . 2 . . . . . . . . . . Utility 5 | . . . . . . . 2 . 1 . . 2 . Weapon . | . . . . . . . . . . . . . . Parts Attached 93 | . 16 7 8 3 1 1 5 2 7 2 3 30 8 Power 12 | . 1 1 1 . . 1 . . 3 . 1 2 2 Engine 8 | . 1 1 1 . . 1 . . 1 . . 1 2 Core 4 | . . . . . . . . . 2 . 1 1 . Reactor . | . . . . . . . . . . . . . . Propulsion 19 | . 4 1 1 2 . . 2 1 1 . . 5 2 Treads 1 | . . . . . . . . . . . . 1 . Leg 4 | . 1 . . . . . . . . . . 1 2 Wheel 2 | . . 1 . . . . . . . . . 1 . Hover 1 | . . . . . . . . . . . . 1 . Flight 11 | . 3 . 1 2 . . 2 1 1 . . 1 . Utility 32 | . 6 1 2 . . . 2 1 3 1 . 13 3 Device 17 | . . 1 2 . . . 2 1 2 1 . 7 1 Storage 4 | . 1 . . . . . . . . . . 2 1 Processor 4 | . 2 . . . . . . . 1 . . . 1 Hackware 2 | . . . . . . . . . . . . 2 . Protection 5 | . 3 . . . . . . . . . . 2 . Artifact . | . . . . . . . . . . . . . . Weapon 30 | . 5 4 4 1 1 . 1 . . 1 2 10 1 Energy Gun 6 | . 2 1 1 . . . . . . . . 2 . Energy Cannon . | . . . . . . . . . . . . . . Ballistic Gun 11 | . 3 1 2 . . . . . . . . 5 . Ballistic Cannon . | . . . . . . . . . . . . . . Launcher 2 | . . 2 . . . . . . . . . . . Special Weapon 6 | . . . 1 1 . . . . . 1 . 3 . Impact Weapon . | . . . . . . . . . . . . . . Slashing Weapon 5 | . . . . . 1 . 1 . . . 2 . 1 Piercing Weapon . | . . . . . . . . . . . . . . Special Melee Weapon . | . . . . . . . . . . . . . . Unidentified Prototypes 2 | . . . 1 . 1 . . . . . . . . Parts Lost 31 | . 3 6 . . . . . 1 . . 9 6 6 Power 4 | . 1 1 . . . . . . . . 1 . 1 Propulsion 9 | . . 2 . . . . . . . . 4 . 3 Utility 12 | . . 1 . . . . . 1 . . 3 5 2 Weapon 6 | . 2 2 . . . . . . . . 1 1 . Highest Loss Streak 5 | . 2 5 . . . . . 1 . . 4 4 3 Average Slot Usage (%) 70 | . 96 75 68 70 88 81 81 89 92 92 53 54 52 Engine 6 | . 13 14 11 11 11 11 9 9 4 . . 2 . Core 3 | . . . . . . . . . 10 15 8 5 4 Treads 1 | . . . . . . . . . . . . 5 3 Leg 3 | . 25 . . . . . . . . . . . . Wheel 2 | . . 3 9 . . . . . . . . 5 4 Flight 11 | . 2 3 4 22 33 33 36 36 30 30 10 . 3 Device 12 | . . 11 11 11 11 11 18 26 24 26 22 11 10 Storage 2 | . 12 . . . . . . . . . . 1 . Processor 7 | . 1 15 11 11 11 11 9 9 13 11 7 6 7 Hackware 1 | . . . . . . . . . . . . . 13 Protection 1 | . 10 . . . . . . . . . . 1 . Energy Gun 3 | . 13 2 17 . . . . . . . . . . Ballistic Gun 5 | . 14 14 1 11 11 4 . . . . . 4 . Special Weapon 1 | . . . 1 4 8 . . . . . . 1 . Slashing Weapon 2 | . . . . . 2 11 9 9 7 7 3 . . Naked Turns . | . . . . . . . . . . . . . . Heaviest Build 41 | 11 22 9 11 11 13 13 14 14 23 22 22 41 14 Greatest Support 28 | 20 20 16 22 19 19 14 20 25 25 25 25 28 28 Greatest Overweight (x) 3 | . 1 2 . . . . . . . . 3 2 2 Average Overweight (x) . | . . . . . . . . . . . . . . Largest Inventory Capacity 8 | . 8 4 4 4 4 4 4 4 4 4 4 8 4 Average Capacity 4 | . 7 4 4 4 4 4 4 4 4 4 4 4 4 Most Carried 8 | . 8 4 4 4 4 4 4 4 4 4 4 4 4 Average Carried 3 | . 6 2 3 4 3 4 3 3 3 4 3 3 3 Final Capacity 6 | 6 4 4 4 4 4 4 4 4 4 4 4 4 4 Final Carried 6 | 6 4 3 4 4 4 4 4 4 4 4 2 3 4 Class Distribution -------------------- 72% | Mutant 9% | Hacker-Mutant 6% | Scavenger-Scout 4% | Scout Dominant Class ---------------- Mutant | -10/Materials Mutant | -10/Mines Mutant | -9/Materials Mutant | -9/Mines Mutant | -9/Exiles Mutant | -8/Mines Scavenger-Scout | -8/Materials Scavenger-Scout | -8/Storage Scout | -7/Factory Sprinter | -7/Lower Caves Mutant | -7/Lower Caves Mutant | -6/Factory Hacker-Mutant | -6/Lower Caves Resources | -11 -10 -10 -9 -9 -9 -8 -8 -8 -7 -7 -7 -6 -6 ----------- Run | Scr Mat Min Mat Min Exi Min Mat Sto Fac Low Low Fac Low Matter Collected 1381 | 193 217 43 125 108 90 10 . 70 . 70 15 307 133 Remotely . | . . . . . . . . . . . . . . Salvage Created 1154 | . 350 153 . 52 . . . 128 . 48 95 328 . Parts 60 | . 18 12 . 4 . . . 7 . 2 3 14 . Haulers Intercepted . | . . . . . . . . . . . . . . Recyclers Shooed 2 | . . . . . . . . . . . . 2 . Parts Field Recycled . | . . . . . . . . . . . . . . Retrieved Matter . | . . . . . . . . . . . . . . Parts Self-Destructed 12 | . . . . . . . . . . 2 3 . 7 Prevented 2 | . . . . . . . . . . . . . 2 Kills | -11 -10 -10 -9 -9 -9 -8 -8 -8 -7 -7 -7 -6 -6 ------- Run | Scr Mat Min Mat Min Exi Min Mat Sto Fac Low Low Fac Low Combat Hostiles Destroyed 32 | . 10 5 . 3 . . . 6 . 1 4 3 . Melee 11 | . . . . . . . . 6 . 1 4 . . Guns 17 | . 10 1 . 3 . . . . . . . 3 . AOE 4 | . . 4 . . . . . . . . . . . Classes Destroyed 9 | . 4 3 . . . . . . . 1 . 1 . Worker 1 | . . 1 . . . . . . . . . . . Tunneler 1 | . . 1 . . . . . . . . . . . Recycler 4 | . 1 1 . . . . . . . . . 2 . Watcher 1 | . 1 . . . . . . . . . . . . Swarmer 19 | . 7 . . 3 . . . 5 . . 4 . . Grunt 6 | . 3 1 . . . . . 1 . . . 1 . Brawler 1 | . . . . . . . . . . . . 1 . Programmer 2 | . . . . . . . . . . 1 . 1 . Assembled 4 | . . 4 . . . . . . . . . . . Best Kill Streak 4 | . 4 4 . 3 . . . 4 . 1 3 3 . Combat Bots Only 4 | . 4 4 . 3 . . . 4 . 1 3 1 . Max Kills in Single Turn 2 | . 2 2 . 1 . . . 1 . 1 1 1 . Gunslinging 1 | . 1 . . . . . . . . . . . . Exploded 2 | . . 2 . . . . . . . . . . . Melee 1 | . . . . . . . . 1 . 1 1 . . Uniques/NPCs Destroyed . | . . . . . . . . . . . . . . Combat | -11 -10 -10 -9 -9 -9 -8 -8 -8 -7 -7 -7 -6 -6 -------- Run | Scr Mat Min Mat Min Exi Min Mat Sto Fac Low Low Fac Low Damage Taken 4140 | . 454 396 29 108 . . . 200 . 76 593 1116 1168 Core 1501 | . 49 127 . 59 . . . 76 . 23 314 213 640 Absorbed by Shields . | . . . . . . . . . . . . . . Core Remaining (%) 70 | 100 . 29 . . . 85 . 86 . . 51 . . Volleys Fired 100 | . 32 18 1 13 . . . . . . . 36 . Largest 2 | . 2 2 1 1 . . . . . . . 2 . Hottest 99 | . 90 73 23 23 . . . . . . . 99 . Shots Fired 158 | . 62 29 1 13 . . . . . . . 53 . Gun 145 | . 62 18 1 13 . . . . . . . 51 . Cannon . | . . . . . . . . . . . . . . Launcher 11 | . . 11 . . . . . . . . . . . Special 2 | . . . . . . . . . . . . 2 . Kinetic 93 | . 24 17 1 13 . . . . . . . 38 . Thermal 27 | . 13 1 . . . . . . . . . 13 . Explosive 11 | . . 11 . . . . . . . . . . . Electromagnetic 25 | . 25 . . . . . . . . . . . . Robot Hit Streak 10 | . 9 5 . 2 . . . . . . . 10 . Robot Miss Streak 5 | . 5 1 2 4 . . . . . . . 3 . Penetration Max . | . . . . . . . . . . . . . . Secondary Targets 2 | . 2 . . . . . . . . . . . . Max Gunslinging Chain 1 | . 1 . . . . . . . . . . . . Shots Hit Robots 112 | . 34 13 . 7 . . . 10 . 4 10 33 1 Core Hits 56 | . 16 13 . 4 . . . 6 . 1 4 12 . Critical Hits 1 | . . . . . . . . . . . . 1 . Critical Kills . | . . . . . . . . . . . . . . Critical Parts Destroyed 1 | . . . . . . . . . . . . 1 . Melee Attacks 27 | . . . . . . . . 11 . 4 10 . 2 Impact . | . . . . . . . . . . . . . . Slashing 27 | . . . . . . . . 11 . 4 10 . 2 Piercing . | . . . . . . . . . . . . . . Sneak Attacks 1 | . . . . . . . . . . . 1 . . Combat Hostiles 1 | . . . . . . . . . . . 1 . . Follow-up Attacks . | . . . . . . . . . . . . . . Damage Inflicted 3131 | . 454 588 14 94 . . . 475 . 220 518 725 43 Guns 1332 | . 413 86 14 94 . . . . . . . 725 . Cannons . | . . . . . . . . . . . . . . Explosions 543 | . 41 502 . . . . . . . . . . . Melee 1256 | . . . . . . . . 475 . 220 518 . 43 Ramming . | . . . . . . . . . . . . . . Kinetic 863 | . 142 86 14 94 . . . . . . . 527 . Thermal 340 | . 142 . . . . . . . . . . 198 . Explosive 502 | . . 502 . . . . . . . . . . . Electromagnetic 170 | . 170 . . . . . . . . . . . . Impact . | . . . . . . . . . . . . . . Slashing 1256 | . . . . . . . . 475 . 220 518 . 43 Piercing . | . . . . . . . . . . . . . . Highest Corruption 9 | . 1 9 2 2 2 2 . . . . 2 6 7 Average Corruption 3 | . 1 7 2 2 2 2 . . . . 2 3 6 Corruption Purged . | . . . . . . . . . . . . . . Effects 29 | . . 6 . 3 3 1 . . . . 1 4 11 Message Errors 7 | . . 2 . 1 1 . . . . . 1 . 2 Matter Fused 7 | . . 1 . . . . . . . . . 1 5 Heat Flow Errors 5 | . . . . 1 1 1 . . . . . 1 1 Energy Discharges 4 | . . 2 . . 1 . . . . . . 1 . Parts Rejected 1 | . . . . . . . . . . . . . 1 Data Loss (minor) 3 | . . . . 1 . . . . . . . . 2 Misfires 1 | . . 1 . . . . . . . . . . . Weapon Failures 1 | . . . . . . . . . . . . 1 . Overload Shots . | . . . . . . . . . . . . . . Overflow Damage 240 | . . 53 . . . . . 12 . 31 142 . 2 Projectiles . | . . . . . . . . . . . . . . Explosions 53 | . . 53 . . . . . . . . . . . Melee 187 | . . . . . . . . 12 . 31 142 . 2 Knockbacks . | . . . . . . . . . . . . . . Impact . | . . . . . . . . . . . . . . Kinetic . | . . . . . . . . . . . . . . Secondary . | . . . . . . . . . . . . . . Self-Inflicted Damage 111 | . . 111 . . . . . . . . . . . Shots 4 | . . 4 . . . . . . . . . . . Rammed . | . . . . . . . . . . . . . . Targets Rammed . | . . . . . . . . . . . . . . Kicked . | . . . . . . . . . . . . . . Crushed . | . . . . . . . . . . . . . . Highest Temperature 379 | . 379 12 346 235 257 233 . . . . . 353 135 Average Temperature 133 | . 144 6 215 67 137 160 . . . . . 142 75 Received Heat Transfer 890 | . 126 50 9 . . . . 36 . 9 180 267 213 Effects 5 | . . . . 1 . . . . . . . 4 . Shutdowns 1 | . . . . . . . . . . . . 1 . Energy Bleed 2 | . . . . 1 . . . . . . . 1 . Interference 2 | . . . . . . . . . . . . 2 . Siege Activations . | . . . . . . . . . . . . . . Robots Corrupted . | . . . . . . . . . . . . . . Combat Hostiles . | . . . . . . . . . . . . . . Parts Fried . | . . . . . . . . . . . . . . Impact Corruptions . | . . . . . . . . . . . . . . Robots Melted . | . . . . . . . . . . . . . . Combat Hostiles . | . . . . . . . . . . . . . . Parts Melted 2 | . 2 . . . . . . . . . . . . Heat Transferred 666 | . 296 . . . . . . . . . . 370 . Parts Sabotaged . | . . . . . . . . . . . . . . Parts Stolen . | . . . . . . . . . . . . . . Parts Stripped . | . . . . . . . . . . . . . . Power Chain Reactions 1 | . 1 . . . . . . . . . . . . Missiles Intercepted . | . . . . . . . . . . . . . . Alert | -11 -10 -10 -9 -9 -9 -8 -8 -8 -7 -7 -7 -6 -6 ------- Run | Scr Mat Min Mat Min Exi Min Mat Sto Fac Low Low Fac Low Peak Influence 200 | . 200 25 87 101 . . 52 196 88 . . 56 . Average Influence 45 | . 60 11 34 68 . . 17 128 88 . . 28 . Maximum Alert Level 1 | . 1 . . . . . . . . . . . . Low Security (%) 99 | . 95 100 100 100 . 100 100 100 100 . . 100 . Level 1 . | . 4 . . . . . . . . . . . . Level 2 . | . . . . . . . . . . . . . . Level 3 . | . . . . . . . . . . . . . . Level 4 . | . . . . . . . . . . . . . . Level 5 . | . . . . . . . . . . . . . . High Security . | . . . . . . . . . . . . . . Max Security . | . . . . . . . . . . . . . . Squads Dispatched 9 | . 3 . 1 . . . . 1 . . 1 3 . Investigation 3 | . 2 . . . . . . . . . . 1 . Extermination 2 | . . . . . . . . . . . . 2 . Reinforcement 3 | . 1 . 1 . . . . 1 . . . . . Assault 1 | . . . . . . . . . . . 1 . . Garrison . | . . . . . . . . . . . . . . Intercept . | . . . . . . . . . . . . . . Construction Impeded . | . . . . . . . . . . . . . . Haulers Reinforced . | . . . . . . . . . . . . . . Stealth | -11 -10 -10 -9 -9 -9 -8 -8 -8 -7 -7 -7 -6 -6 --------- Run | Scr Mat Min Mat Min Exi Min Mat Sto Fac Low Low Fac Low Distress Signals 2 | . 1 . 1 . . . . . . . . . . Communications Jammed . | . . . . . . . . . . . . . . Distress Signals . | . . . . . . . . . . . . . . Times Spotted 123 | . 19 9 3 8 . . 4 18 . 8 23 13 18 Peak Tracking Total 13 | . 8 4 2 13 . . 9 11 . 4 8 5 13 Tactical Retreats 22 | . . 1 . . . . . 4 . 4 7 4 2 Traps | -11 -10 -10 -9 -9 -9 -8 -8 -8 -7 -7 -7 -6 -6 ------- Run | Scr Mat Min Mat Min Exi Min Mat Sto Fac Low Low Fac Low Traps Triggered 2 | . 1 . 1 . . . . . . . . . . Indirectly . | . . . . . . . . . . . . . . Trap Hack Attempts . | . . . . . . . . . . . . . . Triggered . | . . . . . . . . . . . . . . Disarmed . | . . . . . . . . . . . . . . Reprogrammed . | . . . . . . . . . . . . . . Reused . | . . . . . . . . . . . . . . Traps Extracted . | . . . . . . . . . . . . . . Installed . | . . . . . . . . . . . . . . Triggered . | . . . . . . . . . . . . . . Machines | -11 -10 -10 -9 -9 -9 -8 -8 -8 -7 -7 -7 -6 -6 ---------- Run | Scr Mat Min Mat Min Exi Min Mat Sto Fac Low Low Fac Low Machines Disabled . | . . . . . . . . . . . . . . Max in Single Turn . | . . . . . . . . . . . . . . Machines Sabotaged . | . . . . . . . . . . . . . . Garrisons Compromised . | . . . . . . . . . . . . . . Overloaded Fab Kills . | . . . . . . . . . . . . . . Fab Network Shutdowns . | . . . . . . . . . . . . . . Hacking | -11 -10 -10 -9 -9 -9 -8 -8 -8 -7 -7 -7 -6 -6 --------- Run | Scr Mat Min Mat Min Exi Min Mat Sto Fac Low Low Fac Low Machines Accessed 22 | . 3 . 6 . 3 . 4 1 1 . . 4 . Terminals 13 | . 3 . 4 . . . 3 1 . . . 2 . Fabricators 2 | . . . . . . . . . . . . 2 . Repair Stations . | . . . . . . . . . . . . . . Recycling Units 1 | . . . . . . . . . 1 . . . . Scanalyzers 3 | . . . 2 . . . 1 . . . . . . Garrison Access . | . . . . . . . . . . . . . . Total Hacks 66 | . 7 . 12 . 25 . 10 2 2 . . 8 . Successful 50 | . 3 . 8 . 25 . 7 1 1 . . 5 . Failed 16 | . 4 . 4 . . . 3 1 1 . . 3 . Catastrophic . | . . . . . . . . . . . . . . Database Lockouts . | . . . . . . . . . . . . . . Manual 23 | . 8 . 5 . 2 . 5 . . . . 3 . Terminals 26 | . 7 . 8 . . . 6 2 . . . 3 . Fabricators 5 | . . . . . . . . . . . . 5 . Repair Stations . | . . . . . . . . . . . . . . Recycling Units 2 | . . . . . . . . . 2 . . . . Scanalyzers 8 | . . . 4 . . . 4 . . . . . . Garrison Access . | . . . . . . . . . . . . . . Terminal Hacks 30 | . 1 . 1 . 25 . 1 1 . . . 1 . Record 25 | . . . . . 25 . . . . . . . . Open Door 1 | . . . . . . . . 1 . . . . . Branch Access Points 2 | . 1 . 1 . . . . . . . . . . Alert Level 1 | . . . . . . . 1 . . . . . . Unreport Threat 1 | . . . . . . . . . . . . 1 . Fabricator Hacks 2 | . . . . . . . . . . . . 2 . Network Status 1 | . . . . . . . . . . . . 1 . Load Schematic 1 | . . . . . . . . . . . . 1 . Repair Station Hacks . | . . . . . . . . . . . . . . Recycling Unit Hacks 1 | . . . . . . . . . 1 . . . . Report Inventory 1 | . . . . . . . . . 1 . . . . Scanalyzer 8 | . . . 4 . . . 4 . . . . . . Insert Component 4 | . . . 2 . . . 2 . . . . . . Analyze 4 | . . . 2 . . . 2 . . . . . . Garrison Access Hacks . | . . . . . . . . . . . . . . Unauthorized Hacks 9 | . 2 . 3 . . . 2 . . . . 2 . Terminals 9 | . 2 . 3 . . . 2 . . . . 2 . Botnet 9 | . 2 . 3 . . . 2 . . . . 2 . Fabricators . | . . . . . . . . . . . . . . Repair Stations . | . . . . . . . . . . . . . . Recycling Units . | . . . . . . . . . . . . . . Scanalyzers . | . . . . . . . . . . . . . . Garrison Access . | . . . . . . . . . . . . . . Data Cores Recovered . | . . . . . . . . . . . . . . Used . | . . . . . . . . . . . . . . Hacking Detections 14 | . 2 . 5 . . . 2 1 1 . . 3 . Full Trace Events 2 | . 1 . . . . . . . . . . 1 . Feedback Events 1 | . 1 . . . . . . . . . . . . Corruption 1 | . 1 . . . . . . . . . . . . Feedback Blocked . | . . . . . . . . . . . . . . Robot Schematics Acquired . | . . . . . . . . . . . . . . Robots Built . | . . . . . . . . . . . . . . Matter . | . . . . . . . . . . . . . . Time . | . . . . . . . . . . . . . . Total Robot Build Rating . | . . . . . . . . . . . . . . Part Schematics Acquired 3 | . . . 2 . . . 1 . . . . . . Parts Built . | . . . . . . . . . . . . . . Matter . | . . . . . . . . . . . . . . Time . | . . . . . . . . . . . . . . Total Part Build Rating . | . . . . . . . . . . . . . . Parts Repaired . | . . . . . . . . . . . . . . Time . | . . . . . . . . . . . . . . Parts Recycled . | . . . . . . . . . . . . . . Recycled Matter . | . . . . . . . . . . . . . . Retrieved Matter . | . . . . . . . . . . . . . . Retrieved Components . | . . . . . . . . . . . . . . Parts Scanalyzed 3 | . . . 2 . . . 1 . . . . . . Part Schematics Acquired 3 | . . . 2 . . . 1 . . . . . . Parts Damaged . | . . . . . . . . . . . . . . Bothacking | -11 -10 -10 -9 -9 -9 -8 -8 -8 -7 -7 -7 -6 -6 ------------ Run | Scr Mat Min Mat Min Exi Min Mat Sto Fac Low Low Fac Low Used RIF Installer . | . . . . . . . . . . . . . . Robots Hacked 1 | . . . . . . . . . . . . 1 . Non-combat . | . . . . . . . . . . . . . . Combat 1 | . . . . . . . . . . . . 1 . Robot Hacks Applied 1 | . . . . . . . . . . . . 1 . parse_system 1 | . . . . . . . . . . . . 1 . Relay Couplers Released . | . . . . . . . . . . . . . . Robots Rewired . | . . . . . . . . . . . . . . Allies Hacked . | . . . . . . . . . . . . . . Hacks Repelled . | . . . . . . . . . . . . . . Allies | -11 -10 -10 -9 -9 -9 -8 -8 -8 -7 -7 -7 -6 -6 -------- Run | Scr Mat Min Mat Min Exi Min Mat Sto Fac Low Low Fac Low Total Allies 2 | . . 1 . . . . . . . . . . 1 Largest Group 1 | . . 1 1 . . . . . . . . . 1 Highest-Rated Group 157 | . . 31 31 . . . . . . . . . 157 Highest-Rated Ally 157 | . . 31 31 . . . . . . . . . 157 Total Orders . | . . . . . . . . . . . . . . Ally Attacks 8 | . . . 8 . . . . . . . . . . Total Damage 169 | . . . 169 . . . . . . . . . . Kills 2 | . . . 2 . . . . . . . . . . Allies Corrupted . | . . . . . . . . . . . . . . Allies Melted . | . . . . . . . . . . . . . . Intel | -11 -10 -10 -9 -9 -9 -8 -8 -8 -7 -7 -7 -6 -6 ------- Run | Scr Mat Min Mat Min Exi Min Mat Sto Fac Low Low Fac Low Robot Analysis Total . | . . . . . . . . . . . . . . Derelict Logs Recovered 5 | . . . . 2 . . . . . 1 . . 2 Drone Launches . | . . . . . . . . . . . . . . Drone Recoveries . | . . . . . . . . . . . . . . Exploration | -11 -10 -10 -9 -9 -9 -8 -8 -8 -7 -7 -7 -6 -6 ------------- Run | Scr Mat Min Mat Min Exi Min Mat Sto Fac Low Low Fac Low Turns Passed 3696 | . 464 159 261 156 202 97 151 264 53 176 319 1040 354 Spaces Moved 4769 | 1 277 100 332 254 542 253 177 329 119 485 606 863 431 Core 366 | . . 45 . . . . . . . . 156 100 65 Treads . | . . . . . . . . . . . . . . Legs 239 | 1 205 . . . . . . . . . . 7 26 Wheels 762 | . . 27 127 . . . . . . . . 600 8 Hover 26 | . . . . . . . . . . . . 26 . Flight 3376 | . 72 28 205 254 542 253 177 329 119 485 450 130 332 Fastest Speed 31 | 120 37 37 40 34 34 37 34 31 31 31 31 50 50 Average Speed 57 | 120 114 99 65 37 36 37 36 35 33 31 41 91 73 Slowest Speed 200 | 120 150 150 100 40 37 37 37 37 34 34 200 180 150 Overloaded Moves . | . . . . . . . . . . . . . . Propulsion Burnouts . | . . . . . . . . . . . . . . Robots Hopped 10 | . 1 . 2 3 . . . . 1 1 . 1 1 Cave-ins Triggered . | . . . . . . . . . . . . . . Exploration Rate (%) 44 | 2 60 39 28 63 93 69 16 56 4 62 53 20 58 Regions Visited 13 Branch Regions 8 Pre-discovered Areas 1 | . . . . . . . . 1 . . . . . Known Exits Taken 6 | . 1 . 1 . . . . . 1 1 1 1 . Unknown Exits Taken 7 | 1 . 1 . 1 1 1 1 1 . . . . . Scrap Searched 5 | . . . . 1 . 1 . . . 2 1 . . Spaces Dug 15 | . . 15 . . . . . . . . . . . Terrain Destroyed 67 | . 3 64 . . . . . . . . . . . Melee . | . . . . . . . . . . . . . . Projectile . | . . . . . . . . . . . . . . AOE 67 | . 3 64 . . . . . . . . . . . Actions | -11 -10 -10 -9 -9 -9 -8 -8 -8 -7 -7 -7 -6 -6 --------- Run | Scr Mat Min Mat Min Exi Min Mat Sto Fac Low Low Fac Low Total 5522 | . 365 133 375 300 547 256 262 464 131 501 669 1060 459 Wait 455 | . 17 4 23 32 . . 75 119 . 11 44 113 17 Move 4736 | . 274 99 327 247 541 252 176 328 116 482 605 860 429 Hop 10 | . 1 . 2 3 . . . . 1 1 . 1 1 Pick Up 32 | . 8 3 4 1 2 1 3 2 2 . . 6 . Fast Attach 49 | . 7 2 4 3 1 . 1 . 4 2 . 17 8 Attach 29 | . 5 4 1 . . . 4 1 3 . 3 8 . Detach 16 | . 2 1 1 . . . 2 . 1 . 3 5 1 Swap 15 | . 4 1 3 . . 1 . 1 . . . 5 . Drop 53 | . 15 1 9 1 3 2 1 2 4 1 4 9 1 Fire 100 | . 32 18 1 13 . . . . . . . 36 . Melee 27 | . . . . . . . . 11 . 4 10 . 2 Ram . | . . . . . . . . . . . . . . Kick . | . . . . . . . . . . . . . . Crush . | . . . . . . . . . . . . . . Escape Stasis . | . . . . . . . . . . . . . . Rewire . | . . . . . . . . . . . . . . Trap . | . . . . . . . . . . . . . . Miscellaneous . | . . . . . . . . . . . . . . Route ------- -11/Scrapyard -10/Materials (discovered 3 exits: *Mat / *Min x2) -10/Mines -9/Materials (discovered 2 exits: *Min x2) -9/Mines -9/Exiles (discovered 2 exits: [*Min x2]) -8/Mines -8/Materials -8/Storage -7/Factory -7/Lower Caves -7/Lower Caves -6/Factory -6/Lower Caves History --------- Turn | Location | Event 1 | -11/Scrapyard | Discovered new exit (range 0) 1 | -11/Scrapyard | Entered Materials 117 | -10/Materials | Discovered new exit (range 15) 310 | -10/Materials | Build established: Mutant 454 | -10/Materials | Identified exit to Mines 465 | -10/Materials | Entered Mines 472 | -10/Mines | Received a Rocket Launcher from a helpful Derelict 481 | -10/Mines | Excavation squad dispatched 481 | -10/Mines | A large section of the Mines collapsed 506 | -10/Mines | Core integrity fell below 50% 534 | -10/Mines | Lost 5 parts (1p2n1u1w) 615 | -10/Mines | Received a Mining Laser from a helpful Derelict 617 | -10/Mines | Discovered new exit (range 3) 624 | -10/Mines | Entered Materials 624 | -9/Materials | Accompanied by 1 ally 624 | -9/Materials | Evolved 2 slots: Propulsion x2 796 | -9/Materials | Discovered new exit (range 4) 843 | -9/Materials | Identified exit to Mines 885 | -9/Materials | Entered Mines 927 | -9/Mines | Learned Materials stockpile data 983 | -9/Mines | Assembled infested the area 997 | -9/Mines | Met 8R-AWN 997 | -9/Mines | Learned 2 Materials zone layouts 1040 | -9/Mines | Discovered new exit (range 5) 1041 | -9/Mines | Entered Exiles 1046 | -9/Exiles | Discovered new exit (range 17) 1055 | -9/Exiles | Welcomed by 8R-AWN 1060 | -9/Exiles | Met EX-HEX 1072 | -9/Exiles | Met EX-DEC 1081 | -9/Exiles | Visited The Gauntlet 1137 | -9/Exiles | Discovered new exit (range 15) 1159 | -9/Exiles | Met EX-BIN 1176 | -9/Exiles | Aligned with FarCom system 1177 | -9/Exiles | Given EX-Vault access code 1195 | -9/Exiles | Opened EX-Vault 1198 | -9/Exiles | Found Prototype Slashing Weapon 1198 | -9/Exiles | Identified Longsword +1 1207 | -9/Exiles | Warned to stay clear of 0b10 Research branches 1243 | -9/Exiles | Left Exiles lab with Longsword +1 1243 | -9/Exiles | Entered Mines 1336 | -8/Mines | Discovered new exit (range 10) 1340 | -8/Mines | Entered Materials 1340 | -8/Materials | Evolved 2 slots: Utility x2 1481 | -8/Materials | Discovered new exit (range 17) 1491 | -8/Materials | Entered Storage 1741 | -8/Storage | Discovered new exit (range 15) 1754 | -8/Storage | Learned location of Armory (-3) 1755 | -8/Storage | Entered Factory 1755 | -7/Factory | Evolved 2 slots: Power x1, Utility x1 1790 | -7/Factory | Discovered new exit (range 17) 1808 | -7/Factory | Identified exit to Lower Caves 1808 | -7/Factory | Entered Lower Caves 1817 | -7/Lower Caves | Identified exit to Lower Caves 1943 | -7/Lower Caves | Attracted the attention of an 0b10 checkpoint 1984 | -7/Lower Caves | Entered another Lower Caves area 2030 | -7/Lower Caves | Discovered new exit (range 13) 2120 | -7/Lower Caves | Attracted the attention of an 0b10 outpost 2153 | -7/Lower Caves | Lost 4 parts (1p2n1u) 2262 | -7/Lower Caves | Lost 4 parts (1n2u1w) 2303 | -7/Lower Caves | Identified exit to Factory 2303 | -7/Lower Caves | Entered Factory 2303 | -6/Factory | Evolved 2 slots: Utility x2 3197 | -6/Factory | Lost 4 parts (3u1w) 3339 | -6/Factory | Discovered new exit (range 6) 3342 | -6/Factory | Identified exit to Lower Caves 3343 | -6/Factory | Entered Lower Caves 3504 | -6/Lower Caves | Attracted the attention of an 0b10 checkpoint 3563 | -6/Lower Caves | Attracted the attention of an 0b10 outpost 3563 | -6/Lower Caves | Learned Factory stockpile data 3563 | -6/Lower Caves | Learned Factory trap positions 3581 | -6/Lower Caves | Attacked by a faux Warlord 3583 | -6/Lower Caves | Build established: Hacker-Mutant 3618 | -6/Lower Caves | Lost 3 parts (2n1u) 3621 | -6/Lower Caves | Core integrity fell below 50% 3688 | -6/Lower Caves | Core integrity fell below 20% 3697 | -6/Lower Caves | Destroyed by H-66 Slayer with Gauss Rifle Last Messages --------------- 03658_ Destroyed Hvy. Laser. 03659_ System corrupted: Component data lost. 03660_ Imp. Heat Sink destroyed. 03661_ Penetrated by Slug. A strange signal echoes through the caves. 03662_ Acquired Imp. Deuterium Engine. 03665_ Slug penetrates Wall. 03665_ Acquired 25 matter. 03679_ System corrupted: Matter fused (-5). 03679_ Acquired 5 matter. 03681_ Acquired Carbon-fiber Leg. 03682_ Slug penetrates Wall. 03682_ Carbon-fiber Leg destroyed. 03682_ Slug penetrates Wall. 03682_ Imp. Deuterium Engine destroyed. 03685_ Acquired Imp. Deuterium Engine. 03687_ Penetrated by Slug. 03690_ Slug penetrates Wall. 03697_ Penetrated by Slug. [Achievement: Just Browsing] Map ----- +----------------------------------------------------+ | ?????????????????????????????????????????????????? | | ?????????????????????????????????????????????????? | | ?????????????????????????????????????????????????? | | ?????????????????????????????????????????????????? | | ?????????????????????????????????????????????????? | | ?????????????????????????????????????????????????? | | ?????????????????????????????????????????????????? | | ?????????????????????????????????????????????????? | | ?????????????????????????????????????????????????? | | ?????????????????????????????????????????????????? | | ?????????????????????????????????????????????????? | | ?????????????????????????????????????????????????? | | ?????????????????????????????????????????????????? | | ?????????????????????????????????????????#####???? | | ????????????????????????????????????????# #### | | ????????????????####?????####??????????# | | ???????????????## #????## ##????????? | | ????????????#### #?#### ####?????# | | ????????????# #?# #??### #? | | ????????????# #?# ######## #### #?? | | ????????????# ### #""""""# # ##? | | ?????????????# # # "#% ## | | ??????????????# ## "# # % [ ! | | ?????????????## # "# ## % % % | | ???????????### #### # "# ##### *%! | | ???????????# ##### # @ "# #???#%### ## | | ???????????# ### ### ##### #???# #??? | | ???????????# %Yh ! %#????? #???? | | ??????????# ##### %/h !!#??????#???? | | ?????????# #???# #### ####%#??????????? | | ?????????# #???# #??####??#!#??????????? | | ?????????# #???# #???###??# ##?????????? | | ????????# ##???## ###### #### ####### #?? | | ??????? ##?????# #### #?? | | ????? ???????# #?# # #???? | | ???? ???????# #?# # # ###### | | ????# ???????# #??# ##????? | | ????### ???????# ##### ##??????? # | | ??????## ???????# ### #???????? # #### | | ???????# ???????# ## #????????? # #??? | | ????????? ???????## ### #??????????#? #### | | ???????????? ?????????# #????????????? | | ?????????????????????### ######????????????? | | ????????????????????## #??????????????????# | | ????????????????##### ####???????????????# | | ????????? #???????????????# | | ????????? $ % #?????????????### | | ??????????## ######## ## #######???????? | | ?????????????????????### ### ## ##????????# | | ???????????????????????##### #????????# | +----------------------------------------------------+ Best States ------------- Heat Dissipation 56 Coolant Potential 65 Energy Generation 28 Energy Capacity 440 Matter Stores 300 Matter Capacity 450 Sight Range 18 Robot Scan Range 13 Terrain Scan Range 16 Terrain Scan Density 10 Jamming Range 8 Additional Mass Support 6 Armor Coverage 225 Resistance: KI 20 Resistance: TH 20 Melee Speed Boost 20 Evasion (%) 63 Targeting Accuracy 6 Melee Accuracy 5 Recoil Reduction 1 Matter Filtering 30 Offensive Hacking 10 Defensive Hacking 10 Item Schematics ----------------- Weight Redist. System | -9/Materials | Scanalyzed Rocket Launcher | -9/Materials | Scanalyzed Cesium-ion Thruster | -8/Materials | Scanalyzed Robot Schematics ------------------ None Fabricated ------------ Nothing Alien Tech Used ----------------- None Achievements -------------- Just Browsing Slippery One Challenges ------------ None Game ------ Seed EnergyCatalystFemtoactuators Manual? 0 Play Time 01:23:10 Cumulative 10.9 hours Start 2020.08.05 @ 17:30:48 End 2020.08.06 @ 16:34:24 Sessions 3 Manual Loads 0 Difficulty Rogue Special Mode None Game No. 25 Rogue 25 Adventurer 0 Explorer 0 Win Type - Total 0 Types 0/0/0/0/0/0/0 Lore% 20 Gallery% 25 Achievement% 16 Wizard Run 0 Options --------- ASCII 0 Keyboard 0 Movement Numpad Keybinds 0 Fullscreen 0 Font 16/SmallcapsGlow Map View 76x50 Tactical HUD 1 Map Filters NONE Filters NONE Steam 1 RUN: 10b69b6e-a9af-406c-8aa3-cf08d8e36d59